[Event "23rd Pirc Memorial Juniors 202"]
[Site "Maribor"]
[Date "2020.08.12"]
[Round "2.5"]
[White "Drevensek, Doroteja"]
[Black "Guid, Taja"]
[Result "0-1"]
[ECO "B22"]
[WhiteElo "1381"]
[BlackElo "1705"]
[Annotator "NA"]
[PlyCount "108"]
[EventDate "2020.08.12"]
[EventType "tourn"]
[EventCountry "SLO"]
[SourceTitle "playchess.com"]
[Source "ChessBase"]
[SourceQuality "1"]
[TimeControl "3600+30"]

1. e4 {[%emt 0:00:00]} c5 {[%emt 0:00:00]} 2. c3 {[%emt 0:00:00]} g6 {[%emt 0:00:00]} 3. d4 {[%emt 0:00:24]} cxd4 {[%emt 0:00:00]} 4. cxd4 {[%emt 0:00:06]} d5 {[%emt 0:00:00]} 5. exd5 {[%emt 0:00:34]} Nf6 {[%emt 0:00:37]} 6. Nf3 {[%emt 0:08:02]} Nxd5 {[%emt 0:03:57]} 7. Bc4 {[%emt 0:12:20]} Nb6 {[%emt 0:04:12]} 8. Bb3 {[%emt 0:03:04]} Bg7 {[%emt 0:01:32]} 9. O-O {[%emt 0:01:17]} O-O {[%emt 0:00:51]} 10. h3 {[%emt 0:05:15]} Nc6 {[%emt 0:07:26]} 11. Be3 {[%emt 0:02:52]} Na5 {[%emt 0:10:22]} 12. Bc2 {[%emt 0:04:09]} Nac4 {[%emt 0:09:05]} 13. Bc1 {[%emt 0:01:11]} Nd5 {[%emt 0:02:31]} 14. b3 {[%emt 0:04:05]} Ncb6 {[%emt 0:00:52]} 15. Qd2 {[%emt 0:03:53]} h6 {[%emt 0:04:45]} 16. Bb2 {[%emt 0:02:32]} Be6 {[%emt 0:01:13]} 17. Na3 {[%emt 0:02:33]} Rc8 {[%emt 0:01:09]} 18. Rac1 {[%emt 0:01:45]} a6 {[%emt 0:02:33]} 19. Bb1 {[%emt 0:05:52]} Nf6 {[%emt 0:04:09]} 20. Rxc8 {[%emt 0:03:53]} Nxc8 {[%emt 0:01:12]} 21. Qb4 {[%emt 0:02:26]} b5 {[%emt 0:01:03]} 22. Rc1 {[%emt 0:01:56]} Nd5 {[%emt 0:02:09]} 23. Qd2 {[%emt 0:01:15]} Qd6 {[%emt 0:01:05]} 24. Nc2 {[%emt 0:00:33]} Qf4 {[%emt 0:03:30]} 25. Ne3 {[%emt 0:01:31]} Nf6 {[%emt 0:01:41]} 26. d5 {[%emt 0:00:49]} Nxd5 {[%emt 0:02:23]} 27. Bxg7 {[%emt 0:00:19]} Kxg7 {[%emt 0:00:30]} 28. Nxd5 {[%emt 0:00:37]} Qxd2 {[%emt 0:05:13]} 29. Nxd2 {[%emt 0:00:04]} Bxd5 {[%emt 0:00:00]} 30. Rc7 {[%emt 0:00:54]} e6 {[%emt 0:00:00]} 31. Be4 {[%emt 0:00:23]} Nb6 {[%emt 0:00:00]} 32. Ra7 {[%emt 0:00:38]} Ra8 {[%emt 0:00:00]} 33. Rxa8 {[%emt 0:00:19]} Bxa8 {[%emt 0:00:00]} 34. Bc2 {[%emt 0:00:41]} f5 {[%emt 0:00:01]} 35. f3 {[%emt 0:00:18]} Kf6 {[%emt 0:00:37]} 36. Kf2 {[%emt 0:00:45]} Nd5 {[%emt 0:00:13]} 37. a4 {[%emt 0:00:33]} Nb4 {[%emt 0:00:54]} 38. Bd1 {[%emt 0:00:34]} bxa4 {[%emt 0:00:22]} 39. bxa4 {[%emt 0:00:04]} Bd5 {[%emt 0:00:52]} 40. Ke2 {[%emt 0:00:59]} Ke5 {[%emt 0:00:38]} 41. Nb1 {[%emt 0:00:29]} Kd4 {[%emt 0:00:11]} 42. Kd2 {[%emt 0:00:27]} Na2 {[%emt 0:00:47]} 43. Be2 {[%emt 0:00:24]} Bc4 {[%emt 0:01:17]} 44. Bd1 {[%emt 0:00:22]} e5 {[%emt 0:00:32]} 45. Na3 {[%emt 0:00:31]} Bf1 {[%emt 0:00:24]} 46. g4 {[%emt 0:00:38]} Bxh3 {[%emt 0:00:16]} 47. Nc2+ {[%emt 0:00:34]} Kc5 {[%emt 0:00:44]} 48. gxf5 {[%emt 0:00:08]} Bxf5 {[%emt 0:00:13]} 49. Ne3 {[%emt 0:00:20]} Nb4 {[%emt 0:00:27]} 50. Kc3 {[%emt 0:00:36]} Nd5+ {[%emt 0:02:32]} 51. Nxd5 {[%emt 0:00:13]} Kxd5 {[%emt 0:00:00]} 52. Kb4 {[%emt 0:00:16]} Bd3 {[%emt 0:00:00]} 53. Bb3+ {[%emt 0:00:15]} Kd4 {[%emt 0:00:00]} 54. Bd1 {[%emt 0:00:46]} h5 {[%emt 0:00:00]} 0-1

[Event "23rd Pirc Memorial Juniors 202"]
[Site "Maribor"]
[Date "2020.08.13"]
[Round "3.1"]
[White "Guid, Taja"]
[Black "Drevensek, Gasper"]
[Result "1/2-1/2"]
[ECO "A42"]
[WhiteElo "1705"]
[BlackElo "1446"]
[Annotator "NA RC"]
[PlyCount "114"]
[EventDate "2020.08.12"]
[EventType "tourn"]
[EventCountry "SLO"]
[SourceTitle "playchess.com"]
[Source "ChessBase"]
[SourceQuality "1"]
[TimeControl "3600+30"]

1. d4 {[%emt 0:00:00]} d6 {[%emt 0:00:00]} 2. Nf3 {[%emt 0:00:00]} g6 {[%emt 0:00:24]} 3. c4 {[%emt 0:00:00]} Bg7 {[%emt 0:00:16]} 4. g3 {[%emt 0:00:06]} Nd7 {[%emt 0:01:10]} 5. Bg2 {[%emt 0:00:25]} e5 {[%emt 0:00:26]} 6. O-O {[%emt 0:02:10]} Ne7 {[%emt 0:01:59]} 7. e4 {[%emt 0:02:06]} O-O {[%emt 0:00:34]} 8. Nc3 {[%emt 0:00:38]} a5 {[%emt 0:06:56]} 9. Be3 {[%emt 0:06:03]} Nc6 {[%emt 0:03:45]} 10. b3 {[%emt 0:02:47]} Re8 {[%emt 0:05:43]} 11. Rc1 {[%emt 0:01:05]} Nf6 {[%emt 0:04:41]} 12. h3 {[%emt 0:03:53]} Bd7 {[%emt 0:02:08]} 13. Re1 {[%emt 0:01:18]} Qc8 {[%emt 0:01:00]} 14. Kh2 {[%emt 0:00:31]} Nh5 {[%emt 0:10:22]} 15. a3 {[%emt 0:03:27]} Kh8 {[%emt 0:07:34]} 16. d5 {[%emt 0:02:31]} Ne7 {[%emt 0:01:11]} 17. c5 {[%emt 0:03:30]} Qd8 {[%emt 0:01:59]} 18. Ng5 {[%emt 0:01:40]} Rf8 {[%emt 0:02:03]} 19. b4 {[%emt 0:07:23]} f5 {[%emt 0:01:15]} 20. exf5 {[%emt 0:00:50]} Nxf5 {[%emt 0:00:21]} 21. Ne6 {[%emt 0:09:55]} Bxe6 {[%emt 0:02:08]} 22. dxe6 {[%emt 0:00:04]} Nxe3 {[%emt 0:02:04]} 23. fxe3 {[%emt 0:00:17]} axb4 {[%emt 0:04:32]} 24. axb4 {[%emt 0:00:28]} Qe7 {[%emt 0:03:57]} 25. Nd5 {[%emt 0:02:07]} Qg5 {[%emt 0:00:15]} 26. g4 {[%emt 0:01:17]} Rf2 {[%emt 0:03:06]} 27. Re2 {[%emt 0:00:44]} Rxe2 {[%emt 0:00:03]} 28. Qxe2 {[%emt 0:00:01]} e4 {[%emt 0:00:19]} 29. Nxc7 {[%emt 0:01:23]} Qe5+ {[%emt 0:00:44]} 30. Kg1 {[%emt 0:00:11]} Rc8 {[%emt 0:00:18]} 31. cxd6 {[%emt 0:01:21]} Qxd6 {[%emt 0:00:22]} 32. gxh5 {[%emt 0:00:18]} Rxc7 {[%emt 0:00:11]} 33. Rxc7 {[%emt 0:00:22]} Qxc7 {[%emt 0:00:05]} 34. hxg6 {[%emt 0:01:08]} hxg6 {[%emt 0:00:19]} 35. Bxe4 {[%emt 0:01:21]} Qg3+ {[%emt 0:01:22]} 36. Bg2 {[%emt 0:00:08]} Qe5 {[%emt 0:00:23]} 37. Bxb7 {[%emt 0:17:02]} Qxe6 {[%emt 0:00:21]} 38. Bg2 {[%emt 0:00:00]} Bh6 {[%emt 0:00:20]} 39. Qb2+ {[%emt 0:00:00]} Kh7 {[%emt 0:01:28]} 40. e4 {[%emt 0:00:00]} Bg7 {[%emt 0:00:38]} 41. Qd2 {[%emt 0:00:00]} Qc4 {[%emt 0:00:35]} 42. Kh1 {[%emt 0:00:00]} Qb3 {[%emt 0:02:06]} 43. Qe1 {[%emt 0:00:00]} Qd3 {[%emt 0:00:26]} 44. e5 {[%emt 0:00:00]} Qd7 {[%emt 0:00:38]} 45. e6 {[%emt 0:00:00]} Qe7 {[%emt 0:00:02]} 46. b5 {[%emt 0:00:00]} Bf6 {[%emt 0:00:44]} 47. b6 {[%emt 0:00:00]} Qd6 {[%emt 0:00:27]} 48. b7 {[%emt 0:00:00]} Be7 {[%emt 0:00:09]} 49. Qf1 {[%emt 0:00:00]} Kh6 {[%emt 0:00:45]} 50. Qc1+ {[%emt 0:00:00]} Bg5 {[%emt 0:00:16]} 51. Qe1 {[%emt 0:00:00]} Kh7 {[%emt 0:01:27]} 52. Qb1 {[%emt 0:00:00]} Qb8 {[%emt 0:00:48]} 53. Be4 {[%emt 0:00:13]} Kh6 {[%emt 0:00:37]} 54. Bxg6 {[%emt 0:01:44]} Qg3 {[%emt 0:00:31]} 55. Qc2 {[%emt 0:04:17]} Qf3+ {[%emt 0:00:15]} 56. Qg2 {[%emt 0:02:00]} Qd1+ {[%emt 0:00:01]} 57. Qg1 {[%emt 0:00:12]} Qf3+ {[%emt 0:00:12]} 1/2-1/2

[Event "23rd Pirc Memorial Juniors 202"]
[Site "Maribor"]
[Date "2020.08.13"]
[Round "3.2"]
[White "Centrih, Aleks"]
[Black "Drevensek, Doroteja"]
[Result "1-0"]
[ECO "C41"]
[WhiteElo "1746"]
[BlackElo "1381"]
[Annotator "NA RC"]
[PlyCount "123"]
[EventDate "2020.08.12"]
[EventType "tourn"]
[EventCountry "SLO"]
[SourceTitle "playchess.com"]
[Source "ChessBase"]
[SourceQuality "1"]
[TimeControl "3600+30"]

1. e4 {[%emt 0:00:00]} e5 {[%emt 0:01:10]} 2. Nf3 {[%emt 0:00:00]} d6 {[%emt 0:01:03]} 3. Bc4 {[%emt 0:02:28]} Be7 {[%emt 0:01:40]} 4. O-O {[%emt 0:01:30]} Nf6 {[%emt 0:01:23]} 5. Re1 {[%emt 0:01:02]} O-O {[%emt 0:00:30]} 6. h3 {[%emt 0:03:46]} c6 {[%emt 0:03:19]} 7. d4 {[%emt 0:04:28]} Nbd7 {[%emt 0:06:26]} 8. Bf1 {[%emt 0:04:32]} b5 {[%emt 0:05:16]} 9. c3 {[%emt 0:06:01]} a6 {[%emt 0:05:04]} 10. a4 {[%emt 0:02:40]} Bb7 {[%emt 0:04:00]} 11. Nbd2 {[%emt 0:03:36]} Re8 {[%emt 0:06:43]} 12. axb5 {[%emt 0:04:59]} axb5 {[%emt 0:02:39]} 13. Rxa8 {[%emt 0:00:33]} Bxa8 {[%emt 0:02:00]} 14. Bd3 {[%emt 0:05:33]} Bf8 {[%emt 0:02:01]} 15. Nf1 {[%emt 0:01:43]} Qb6 {[%emt 0:06:30]} 16. Ng3 {[%emt 0:01:35]} g6 {[%emt 0:00:11]} 17. Be3 {[%emt 0:03:59]} Qb8 {[%emt 0:01:46]} 18. Bc2 {[%emt 0:01:24]} exd4 19. cxd4 {[%emt 0:00:07]} c5 {[%emt 0:05:14]} 20. Bf4 {[%emt 0:01:26]} cxd4 {[%emt 0:03:34]} 21. Qxd4 {[%emt 0:01:51]} Ne5 {[%emt 0:00:56]} 22. Bxe5 {[%emt 0:03:01]} dxe5 {[%emt 0:00:29]} 23. Qe3 {[%emt 0:00:52]} Rc8 {[%emt 0:01:26]} 24. Bb3 {[%emt 0:00:30]} Bc5 {[%emt 0:01:30]} 25. Qg5 {[%emt 0:02:39]} Qb6 {[%emt 0:03:04]} 26. Re2 {[%emt 0:01:53]} Qd6 {[%emt 0:04:33]} 27. Nf5 {[%emt 0:02:01]} Qb6 {[%emt 0:00:31]} 28. Nxe5 {[%emt 0:01:28]} Bxf2+ {[%emt 0:00:28]} 29. Rxf2 {[%emt 0:03:11]} Qxf2+ {[%emt 0:00:21]} 30. Kxf2 {[%emt 0:00:50]} Nxe4+ {[%emt 0:00:01]} 31. Kf1 {[%emt 0:00:19]} Nxg5 {[%emt 0:00:38]} 32. Ne7+ {[%emt 0:00:04]} Kg7 {[%emt 0:00:31]} 33. Nxc8 {[%emt 0:00:03]} f6 {[%emt 0:00:34]} 34. Nd3 {[%emt 0:01:42]} Ne4 {[%emt 0:00:21]} 35. Be6 {[%emt 0:01:37]} f5 {[%emt 0:00:45]} 36. Bd7 {[%emt 0:01:05]} Bb7 {[%emt 0:00:37]} 37. Na7 {[%emt 0:00:46]} Ng3+ {[%emt 0:00:42]} 38. Kf2 {[%emt 0:01:21]} Ne4+ {[%emt 0:00:21]} 39. Kg1 {[%emt 0:00:04]} Nd6 {[%emt 0:00:41]} 40. Bc6 {[%emt 0:00:40]} Bxc6 {[%emt 0:00:28]} 41. Nxc6 {[%emt 0:00:05]} Kf6 {[%emt 0:00:12]} 42. Nd4 {[%emt 0:00:36]} h6 {[%emt 0:00:37]} 43. Kf2 {[%emt 0:00:47]} g5 {[%emt 0:00:23]} 44. Ke3 {[%emt 0:01:06]} Nc4+ {[%emt 0:00:41]} 45. Kf3 {[%emt 0:00:31]} Nd6 {[%emt 0:00:23]} 46. Nb4 {[%emt 0:00:46]} h5 {[%emt 0:00:40]} 47. Nbc6 {[%emt 0:00:59]} Kg6 {[%emt 0:00:35]} 48. Na7 {[%emt 0:01:02]} g4+ {[%emt 0:00:09]} 49. Kf4 {[%emt 0:00:35]} Nc4 {[%emt 0:00:52]} 50. Naxb5 {[%emt 0:00:17]} Nxb2 {[%emt 0:00:09]} 51. h4 {[%emt 0:00:54]} Nd3+ {[%emt 0:00:34]} 52. Ke3 {[%emt 0:00:07]} Ne5 {[%emt 0:00:24]} 53. Nd6 {[%emt 0:00:24]} Kf6 {[%emt 0:00:49]} 54. N6xf5 {[%emt 0:00:21]} Ng6 {[%emt 0:00:15]} 55. g3 {[%emt 0:00:24]} Ne5 {[%emt 0:00:32]} 56. Nd6 {[%emt 0:00:14]} Ng6 {[%emt 0:00:18]} 57. Ke4 {[%emt 0:00:53]} Ne7 {[%emt 0:00:57]} 58. Ne8+ {[%emt 0:00:45]} Kf7 {[%emt 0:00:15]} 59. Nc7 {[%emt 0:00:07]} Kf6 {[%emt 0:00:19]} 60. Nd5+ {[%emt 0:00:04]} Nxd5 {[%emt 0:00:07]} 61. Kxd5 {[%emt 0:00:05]} Kg6 {[%emt 0:00:13]} 62. Ke6 {[%emt 0:00:04]} 1-0

[Event "23rd Pirc Memorial Juniors 202"]
[Site "Maribor"]
[Date "2020.08.13"]
[Round "3.3"]
[White "Javornik, Lina"]
[Black "Heric, Meta"]
[Result "0-1"]
[ECO "B22"]
[WhiteElo "1330"]
[BlackElo "1287"]
[Annotator "NA RC"]
[PlyCount "76"]
[EventDate "2020.08.12"]
[EventType "tourn"]
[EventCountry "SLO"]
[SourceTitle "playchess.com"]
[Source "ChessBase"]
[SourceQuality "1"]
[TimeControl "3600+30"]

1. e4 {[%emt 0:00:00]} c5 {[%emt 0:00:00]} 2. c3 {[%emt 0:00:00]} Nf6 {[%emt 0:00:04]} 3. e5 {[%emt 0:01:05]} Nd5 {[%emt 0:03:27]} 4. d4 {[%emt 0:01:02]} e6 {[%emt 0:05:18]} 5. c4 {[%emt 0:01:32]} Nb4 {[%emt 0:03:24]} 6. a3 {[%emt 0:00:17]} N4c6 {[%emt 0:00:39]} 7. dxc5 {[%emt 0:04:09]} Bxc5 {[%emt 0:04:32]} 8. Qg4 {[%emt 0:02:49]} g6 {[%emt 0:04:41]} 9. Nf3 {[%emt 0:01:34]} Qa5+ {[%emt 0:08:01]} 10. Bd2 {[%emt 0:01:09]} Bb4 {[%emt 0:01:04]} 11. Nc3 {[%emt 0:01:10]} Nxe5 {[%emt 0:07:20]} 12. Nxe5 {[%emt 0:03:09]} Qxe5+ {[%emt 0:00:40]} 13. Be2 {[%emt 0:00:10]} Bc5 {[%emt 0:01:14]} 14. Ne4 {[%emt 0:01:54]} Bd4 {[%emt 0:01:40]} 15. Nc3 {[%emt 0:09:16]} h5 {[%emt 0:07:37]} 16. Qh4 {[%emt 0:01:17]} Qf6 {[%emt 0:01:22]} 17. Qg3 {[%emt 0:01:52]} h4 {[%emt 0:04:13]} 18. Qf3 {[%emt 0:02:53]} Qxf3 {[%emt 0:00:17]} 19. Bxf3 {[%emt 0:00:09]} Nc6 {[%emt 0:00:43]} 20. Bf4 {[%emt 0:01:44]} Ne5 {[%emt 0:01:15]} 21. Nb5 {[%emt 0:00:48]} Nxf3+ {[%emt 0:02:42]} 22. gxf3 {[%emt 0:00:15]} Bb6 {[%emt 0:00:38]} 23. Bg5 {[%emt 0:01:30]} d5 {[%emt 0:03:56]} 24. cxd5 {[%emt 0:00:30]} exd5 {[%emt 0:00:30]} 25. Rc1 {[%emt 0:01:13]} O-O {[%emt 0:01:12]} 26. Nd6 {[%emt 0:01:16]} Bh3 {[%emt 0:01:25]} 27. Bxh4 {[%emt 0:01:26]} Bg2 {[%emt 0:00:25]} 28. Rg1 {[%emt 0:00:45]} Bxf3 {[%emt 0:00:07]} 29. Be7 {[%emt 0:02:11]} Rfe8 {[%emt 0:01:38]} 30. Nxe8 {[%emt 0:03:22]} Rxe8 {[%emt 0:04:56]} 31. Kd2 {[%emt 0:02:34]} Rxe7 {[%emt 0:00:00]} 32. Rg3 {[%emt 0:01:49]} Re2+ {[%emt 0:00:00]} 33. Kd3 {[%emt 0:00:56]} Rxf2 {[%emt 0:00:00]} 34. b4 {[%emt 0:01:09]} Be4+ {[%emt 0:00:00]} 35. Kc3 {[%emt 0:00:33]} Rxh2 {[%emt 0:00:00]} 36. a4 {[%emt 0:01:10]} a5 {[%emt 0:00:00]} 37. b5 {[%emt 0:00:18]} d4+ {[%emt 0:00:00]} 38. Kb3 {[%emt 0:01:08]} Bd5+ {[%emt 0:00:00]} 0-1

[Event "23rd Pirc Memorial Juniors 202"]
[Site "Maribor"]
[Date "2020.08.13"]
[Round "3.5"]
[White "Javornik, Nik"]
[Black "Kozlovic, Jernej"]
[Result "1-0"]
[ECO "C64"]
[WhiteElo "1786"]
[BlackElo "1445"]
[Annotator "NA RC"]
[PlyCount "113"]
[EventDate "2020.08.12"]
[EventType "tourn"]
[EventCountry "SLO"]
[SourceTitle "playchess.com"]
[Source "ChessBase"]
[SourceQuality "1"]
[TimeControl "3600+30"]

1. e4 {[%emt 0:00:00]} e5 {[%emt 0:00:00]} 2. Nf3 {[%emt 0:00:00]} Nc6 {[%emt 0:00:00]} 3. Bb5 {[%emt 0:00:00]} Bc5 {[%emt 0:00:00]} 4. O-O {[%emt 0:00:07]} Nd4 {[%emt 0:00:00]} 5. Nxd4 {[%emt 0:00:33]} Bxd4 {[%emt 0:00:00]} 6. c3 {[%emt 0:00:20]} Bb6 {[%emt 0:00:06]} 7. d4 {[%emt 0:00:15]} c6 {[%emt 0:00:17]} 8. Ba4 {[%emt 0:01:10]} d6 {[%emt 0:00:10]} 9. dxe5 {[%emt 0:05:56]} dxe5 {[%emt 0:00:03]} 10. Qh5 {[%emt 0:00:16]} Qe7 {[%emt 0:10:45]} 11. Bg5 {[%emt 0:02:08]} Qe6 {[%emt 0:05:22]} 12. Bb3 {[%emt 0:00:20]} Qg6 {[%emt 0:00:47]} 13. Qxg6 {[%emt 0:02:58]} hxg6 {[%emt 0:00:01]} 14. a4 {[%emt 0:03:40]} Nf6 {[%emt 0:02:00]} 15. a5 {[%emt 0:04:59]} Bc5 {[%emt 0:04:16]} 16. Ra4 {[%emt 0:07:14]} Bg4 {[%emt 0:02:46]} 17. Re1 {[%emt 0:04:55]} Rd8 {[%emt 0:10:05]} 18. h3 {[%emt 0:01:26]} Bc8 {[%emt 0:08:38]} 19. Bc4 {[%emt 0:08:06]} Rh5 {[%emt 0:06:49]} 20. h4 {[%emt 0:02:16]} Ng4 {[%emt 0:05:05]} 21. Bxd8 {[%emt 0:04:35]} Bxf2+ {[%emt 0:00:45]} 22. Kf1 {[%emt 0:00:07]} Bxe1 {[%emt 0:00:28]} 23. Kxe1 {[%emt 0:01:42]} Kxd8 {[%emt 0:00:16]} 24. g3 {[%emt 0:01:54]} f5 {[%emt 0:02:16]} 25. Bf7 {[%emt 0:01:16]} Rh6 {[%emt 0:00:39]} 26. Nd2 {[%emt 0:02:01]} Ke7 {[%emt 0:00:35]} 27. Bb3 {[%emt 0:01:51]} g5 {[%emt 0:04:24]} 28. hxg5 {[%emt 0:02:26]} Rh1+ {[%emt 0:00:38]} 29. Ke2 {[%emt 0:00:09]} Rh2+ {[%emt 0:00:21]} 30. Ke1 {[%emt 0:01:34]} Rg2 {[%emt 0:01:36]} 31. a6 {[%emt 0:00:17]} b5 {[%emt 0:01:15]} 32. Rb4 {[%emt 0:02:03]} Rxg3 {[%emt 0:01:04]} 33. c4 {[%emt 0:00:47]} fxe4 {[%emt 0:01:35]} 34. cxb5 {[%emt 0:00:59]} cxb5 {[%emt 0:01:07]} 35. Nxe4 {[%emt 0:01:05]} Rg1+ {[%emt 0:01:02]} 36. Kd2 {[%emt 0:00:49]} Rg2+ {[%emt 0:00:23]} 37. Kc3 {[%emt 0:01:58]} Bxa6 {[%emt 0:00:27]} 38. Nc5 {[%emt 0:00:18]} Rg3+ {[%emt 0:00:45]} 39. Kd2 {[%emt 0:00:29]} Bc8 {[%emt 0:00:19]} 40. Rxb5 {[%emt 0:00:06]} Rg2+ {[%emt 0:00:41]} 41. Kc3 {[%emt 0:00:29]} Ne3 {[%emt 0:00:44]} 42. Rb8 {[%emt 0:00:32]} Bf5 {[%emt 0:00:29]} 43. Nd3 {[%emt 0:03:07]} Bxd3 {[%emt 0:01:25]} 44. Kxd3 {[%emt 0:00:01]} Nf5 {[%emt 0:00:12]} 45. Rb7+ {[%emt 0:00:16]} Kd6 {[%emt 0:00:16]} 46. Rxa7 {[%emt 0:00:20]} Rxb2 {[%emt 0:00:36]} 47. Ra6+ {[%emt 0:00:31]} Kc5 {[%emt 0:00:15]} 48. Bc4 {[%emt 0:00:34]} e4+ {[%emt 0:00:10]} 49. Kc3 {[%emt 0:02:02]} Rg2 {[%emt 0:00:04]} 50. Ra5+ {[%emt 0:00:03]} Kd6 {[%emt 0:00:31]} 51. Rxf5 {[%emt 0:00:05]} e3 {[%emt 0:00:38]} 52. Kd3 {[%emt 0:01:43]} Rg4 {[%emt 0:02:14]} 53. Bf7 {[%emt 0:01:10]} Rg3 {[%emt 0:00:34]} 54. g6 {[%emt 0:00:00]} Ke7 {[%emt 0:00:33]} 55. Re5+ {[%emt 0:00:05]} Kf6 {[%emt 0:00:12]} 56. Ra5 {[%emt 0:01:36]} Ke7 {[%emt 0:00:40]} 57. Ra6 {[%emt 0:00:28]} 1-0

[Event "23rd Pirc Memorial Juniors 202"]
[Site "Maribor"]
[Date "2020.08.13"]
[Round "4.1"]
[White "Drevensek, Gasper"]
[Black "Kozlovic, Jernej"]
[Result "0-1"]
[ECO "C54"]
[WhiteElo "1446"]
[BlackElo "1445"]
[Annotator "NA"]
[PlyCount "89"]
[EventDate "2020.08.12"]
[EventType "tourn"]
[EventCountry "SLO"]
[SourceTitle "playchess.com"]
[Source "ChessBase"]
[SourceQuality "1"]
[TimeControl "3600+30"]

1. e4 {[%emt 0:00:00]} e5 {[%emt 0:00:00]} 2. Nf3 {[%emt 0:00:00]} Nc6 {[%emt 0:00:00]} 3. Bc4 {[%emt 0:00:23]} Bc5 {[%emt 0:00:00]} 4. c3 {[%emt 0:00:44]} Nf6 {[%emt 0:00:00]} 5. d3 {[%emt 0:00:16]} d6 {[%emt 0:00:50]} 6. O-O {[%emt 0:00:31]} h6 {[%emt 0:06:21]} 7. Nbd2 {[%emt 0:03:07]} O-O {[%emt 0:00:19]} 8. b4 {[%emt 0:01:38]} Bb6 {[%emt 0:00:07]} 9. Bb3 {[%emt 0:00:28]} a5 {[%emt 0:04:35]} 10. b5 {[%emt 0:03:24]} Ne7 {[%emt 0:01:39]} 11. a4 {[%emt 0:00:58]} c6 {[%emt 0:03:00]} 12. bxc6 {[%emt 0:02:30]} bxc6 {[%emt 0:01:24]} 13. Nc4 {[%emt 0:02:11]} Bc7 {[%emt 0:01:05]} 14. Ba3 {[%emt 0:03:01]} Ng6 {[%emt 0:08:30]} 15. Ne3 {[%emt 0:04:30]} Re8 {[%emt 0:01:34]} 16. Qc2 {[%emt 0:06:23]} d5 {[%emt 0:02:12]} 17. exd5 {[%emt 0:07:10]} cxd5 {[%emt 0:00:06]} 18. Qa2 {[%emt 0:02:34]} Bb7 {[%emt 0:04:22]} 19. Rfe1 {[%emt 0:02:08]} Qd7 {[%emt 0:01:52]} 20. Rab1 {[%emt 0:03:51]} Bc6 {[%emt 0:03:36]} 21. Bc5 {[%emt 0:10:12]} Nf4 {[%emt 0:04:41]} 22. Qc2 {[%emt 0:04:22]} d4 {[%emt 0:08:14]} 23. cxd4 {[%emt 0:07:44]} e4 {[%emt 0:06:40]} 24. Nd2 {[%emt 0:02:05]} exd3 {[%emt 0:01:58]} 25. Qc4 {[%emt 0:00:17]} N6d5 {[%emt 0:04:57]} 26. Kh1 {[%emt 0:00:53]} Nxe3 {[%emt 0:01:03]} 27. Rxe3 {[%emt 0:00:17]} Bxg2+ {[%emt 0:01:49]} 28. Kg1 {[%emt 0:00:07]} Rxe3 {[%emt 0:01:13]} 29. Qxf7+ {[%emt 0:00:33]} Qxf7 {[%emt 0:00:12]} 30. Bxf7+ {[%emt 0:00:11]} Kxf7 {[%emt 0:00:02]} 31. fxe3 {[%emt 0:00:08]} Bc6 {[%emt 0:01:51]} 32. exf4 {[%emt 0:00:16]} Kg6 {[%emt 0:00:50]} 33. Rb3 {[%emt 0:01:42]} Bxa4 {[%emt 0:00:50]} 34. Rxd3 {[%emt 0:00:11]} Bxf4 {[%emt 0:00:13]} 35. Nf3 {[%emt 0:00:27]} Kf5 {[%emt 0:00:47]} 36. Ra3 {[%emt 0:00:52]} Bc2 {[%emt 0:00:25]} 37. Ne1 {[%emt 0:00:40]} Be4 {[%emt 0:00:29]} 38. h3 {[%emt 0:00:28]} a4 {[%emt 0:00:17]} 39. Rc3 {[%emt 0:01:02]} Bd2 {[%emt 0:00:29]} 40. Rg3 {[%emt 0:00:34]} Bxe1 {[%emt 0:00:14]} 41. Rxg7 {[%emt 0:00:04]} a3 {[%emt 0:00:14]} 42. Bxa3 {[%emt 0:00:19]} Rxa3 {[%emt 0:02:00]} 43. Rf7+ {[%emt 0:00:20]} Ke6 {[%emt 0:00:00]} 44. Rf4 {[%emt 0:00:20]} Kd5 {[%emt 0:00:00]} 45. Rh4 {[%emt 0:02:39]} 0-1

[Event "23rd Pirc Memorial Juniors 202"]
[Site "Maribor"]
[Date "2020.08.13"]
[Round "4.2"]
[White "Kodric, Gasper"]
[Black "Javornik, Nik"]
[Result "1/2-1/2"]
[ECO "A29"]
[WhiteElo "1624"]
[BlackElo "1786"]
[Annotator "NA RC"]
[PlyCount "73"]
[EventDate "2020.08.12"]
[EventType "tourn"]
[EventCountry "SLO"]
[SourceTitle "playchess.com"]
[Source "ChessBase"]
[SourceQuality "1"]
[TimeControl "3600+30"]

1. c4 {[%emt 0:00:00]} e5 {[%emt 0:00:00]} 2. g3 {[%emt 0:00:07]} Nf6 {[%emt 0:00:00]} 3. Bg2 {[%emt 0:00:28]} d5 {[%emt 0:00:02]} 4. cxd5 {[%emt 0:00:11]} Nxd5 {[%emt 0:00:02]} 5. Nf3 {[%emt 0:00:08]} Nc6 {[%emt 0:00:14]} 6. O-O {[%emt 0:00:08]} Nb6 {[%emt 0:00:15]} 7. d3 {[%emt 0:00:06]} Be7 {[%emt 0:00:11]} 8. Nc3 {[%emt 0:00:04]} O-O {[%emt 0:00:12]} 9. Be3 {[%emt 0:00:04]} Be6 {[%emt 0:00:42]} 10. d4 {[%emt 0:00:05]} exd4 {[%emt 0:01:19]} 11. Nxd4 {[%emt 0:00:15]} Nxd4 {[%emt 0:00:17]} 12. Bxd4 {[%emt 0:00:05]} c6 {[%emt 0:00:37]} 13. Ne4 {[%emt 0:00:05]} Bd5 {[%emt 0:03:34]} 14. e3 {[%emt 0:03:57]} Qd7 {[%emt 0:05:34]} 15. Qc2 {[%emt 0:05:29]} Rfd8 {[%emt 0:03:22]} 16. Rfd1 {[%emt 0:02:27]} Qe8 {[%emt 0:04:42]} 17. Nc5 {[%emt 0:05:04]} Bxg2 {[%emt 0:01:38]} 18. Kxg2 {[%emt 0:00:17]} Bxc5 {[%emt 0:01:23]} 19. Bxc5 {[%emt 0:00:34]} Qe6 {[%emt 0:02:56]} 20. Rxd8+ {[%emt 0:05:37]} Rxd8 {[%emt 0:00:13]} 21. Rd1 {[%emt 0:00:27]} Rd5 {[%emt 0:01:09]} 22. Bxb6 {[%emt 0:07:30]} axb6 {[%emt 0:00:02]} 23. Qa4 {[%emt 0:01:06]} g6 {[%emt 0:01:24]} 24. Rxd5 {[%emt 0:06:22]} Qxd5+ {[%emt 0:00:08]} 25. e4 {[%emt 0:00:18]} Qd7 {[%emt 0:00:41]} 26. Qb4 {[%emt 0:01:16]} b5 {[%emt 0:01:07]} 27. Qc3 {[%emt 0:03:52]} h5 {[%emt 0:01:08]} 28. h4 {[%emt 0:01:53]} Kh7 {[%emt 0:02:03]} 29. Qf6 {[%emt 0:01:47]} c5 {[%emt 0:03:42]} 30. a3 {[%emt 0:01:58]} Kg8 {[%emt 0:01:47]} 31. e5 {[%emt 0:03:02]} Qd5+ {[%emt 0:01:06]} 32. Qf3 {[%emt 0:01:35]} Qxe5 {[%emt 0:00:46]} 33. Qxb7 {[%emt 0:00:15]} c4 {[%emt 0:00:23]} 34. a4 {[%emt 0:01:30]} bxa4 {[%emt 0:01:34]} 35. Qc8+ {[%emt 0:00:23]} Kg7 {[%emt 0:00:14]} 36. Qxc4 {[%emt 0:00:06]} Qxb2 {[%emt 0:00:06]} 37. Qxa4 {[%emt 0:00:08]} 1/2-1/2